fUST/lending_fUST_20260223
["ID","MTS","AMOUNT","RATE_DAILY","PERIOD"]
[406374783,1771830640990,-151.0,0.00038356,120]
[406374784,1771830641000,-259.553367,0.00038356,120]
[406374785,1771830641009,-151.0,0.00038499,120]
[406374786,1771830641019,-500.0,0.00038553,30]
[406374787,1771830641028,-1308.81904847,0.0003889,2]
[406374802,1771830643412,-136.82465397,0.0003889,2]
[406374803,1771830643451,-460.02907769,0.0003889,2]
[406374817,1771830646171,-932.591776,0.0003889,2]
[406374818,1771830646183,-5636.2102394,0.0003898,3]
[406374819,1771830646195,-2000.0,0.00038999,120]
[406374820,1771830646210,-1825.15175445,0.00039,45]
[406374821,1771830646227,-5185.03824555,0.00039,45]
[406374822,1771830646238,-151.0,0.00039,120]
[406374823,1771830646251,-151.0,0.00039,120]
[406374824,1771830646262,-151.0,0.00039,120]
[406374825,1771830646275,-500.0,0.00039179,30]
[406374826,1771830646290,-906.18559586,0.00039468,30]
[406374827,1771830646302,-2097.29509548,0.00039695,2]
[406374828,1771830646314,-2437.28,0.0004,46]
[406374829,1771830646326,-151.0,0.00040217,120]
[406374830,1771830646337,-500.0,0.00040317,2]
[406374831,1771830646348,-6555.3466198,0.00040318,2]
[406374832,1771830646361,-307.42167174,0.00040627,2]
[406374833,1771830646373,-155.575,0.00040658,58]
[406374834,1771830646384,-151.0,0.00040916,120]
[406374835,1771830646395,-2838.26455609,0.00040917,2]
[406374836,1771830646406,-429.0,0.00040952,2]
[406374837,1771830646416,-727.0,0.00040952,2]
[406374838,1771830646426,-500.0,0.00041021,30]
[406374839,1771830646436,-173.45905736,0.00041902,2]
[406374840,1771830646447,-515.45153224,0.0004218,60]
[406374841,1771830646458,-500.0,0.00042924,30]
[406374842,1771830646468,-2838.26455609,0.00042943,2]
[406374843,1771830646479,-500.0,0.00043184,2]
[406374844,1771830646490,-151.0,0.00043185,120]
[406374845,1771830646501,-191.485508,0.00043185,120]
[406374846,1771830646512,-250.0,0.00043185,10]
[406374847,1771830646526,-250.0,0.00043185,10]
[406374848,1771830646536,-250.0,0.00043185,10]
[406374849,1771830646548,-250.0,0.00043185,10]
[406374850,1771830646560,-250.0,0.00043185,10]
[406374851,1771830646572,-250.0,0.00043185,10]
[406374852,1771830646584,-255.95645732,0.00043185,10]
[406374853,1771830646595,-250.0,0.00043185,10]
[406374854,1771830646607,-250.0,0.00043185,10]
[406374855,1771830646618,-500.0,0.00043185,10]
[406374856,1771830646628,-231.95852325,0.00043185,10]
[406374857,1771830646637,-500.0,0.00043185,10]
[406374858,1771830646647,-500.0,0.00043185,10]
[406374859,1771830646661,-500.0,0.00043185,10]
[406374860,1771830646670,-500.0,0.00043185,10]
[406374861,1771830646680,-500.0,0.00043185,10]
[406374862,1771830646691,-500.0,0.00043185,10]
[406374863,1771830646702,-500.0,0.00043185,10]
[406374864,1771830646713,-500.0,0.00043185,10]
[406374865,1771830646726,-500.0,0.00043185,10]
[406374866,1771830646737,-500.0,0.00043185,10]
[406374867,1771830646749,-209.40437684,0.00043185,10]
[406374868,1771830646759,-217.15233878,0.00043185,10]
[406374869,1771830646768,-225.18697532,0.00043185,10]
[406374870,1771830646779,-242.15909246,0.00043185,10]
[406374871,1771830646789,-251.11897888,0.00043185,10]
[406374872,1771830646800,-260.4103811,0.00043185,10]
[406374873,1771830646811,-270.0455652,0.00043185,10]
[406374874,1771830646823,-280.03725112,0.00043185,10]
[406374875,1771830646835,-290.39862941,0.00043185,10]
[406374876,1771830646845,-301.1433787,0.00043185,10]
[406374877,1771830646855,-11272.4204788,0.00043186,3]
[406374878,1771830646866,-4045.67,0.00043186,10]
[406374879,1771830646876,-3371.39,0.00043186,10]
[406374880,1771830646887,-2809.49,0.00043186,10]
[406374881,1771830646898,-909.10526062,0.00043188,3]
[406374882,1771830646961,-110.70891948,0.00043188,3]
[406374886,1771831628101,1648.14573393,0.000157,120]
[406374887,1771831638136,-189.66884225,0.00015881,2]
[406374889,1771831745191,-79.33115775,0.00015881,2]
[406374890,1771831745215,-1224.50685161,0.00015882,120]
[406374891,1771831745236,-150.0,0.00016143,2]
[406374892,1771831745257,-667.0,0.00016907,2]
[406374893,1771831745277,-4119.08340531,0.00017,2]
[406374894,1771831752074,-264.06400113,0.00017,2]
[406374895,1771831752093,-320.62279118,0.00017061,2]
[406374896,1771831757097,-183.07540107,0.00017061,2]
[406374897,1771831757121,-300.0,0.00017599,2]
[406374898,1771831757143,-150.0,0.000176,2]
[406374899,1771831757161,-2149.80380588,0.000176,2]
[406374900,1771831757181,-152.8451503,0.00018143,2]
[406374901,1771831757202,-150.0,0.000182,2]
[406374902,1771831757223,-150.0,0.000187,2]
[406374903,1771831757242,-160.44,0.000187,2]
[406374904,1771831757260,-736.47271507,0.000187,2]
[406374905,1771831757282,-420.0,0.0001921,2]
[406374906,1771831757301,-1379.56015804,0.0002,3]
[406374907,1771831757320,-587.0,0.00020969,2]
[406374908,1771831757339,-150.0,0.00021918,2]
[406374909,1771831757359,-300.0,0.00022465,2]
[406374910,1771831757378,-346.30401164,0.00022466,2]
[406374911,1771831757397,-300.0,0.00022889,2]
[406374912,1771831757418,-180.26624668,0.000237,2]
[406374913,1771831757541,-4932.07991179,0.00024,7]
[406374914,1771831757564,-300.0,0.00024741,2]
[406374915,1771831757589,-300.0,0.00024741,2]
[406374916,1771831757608,-300.0,0.00024741,2]
[406374917,1771831757629,-512.8926523,0.00024742,2]
[406374918,1771831757651,-323.584257,0.00024915,2]
[406374919,1771831757669,-653.17866967,0.00025,2]
[406374920,1771831757689,-7149.07909951,0.00025,15]
[406374921,1771831757708,-412.21336615,0.00025,2]
[406374922,1771831757728,-2690.32481533,0.00025,2]
[406374923,1771831757745,-10364.0,0.00025,2]
[406374924,1771831757767,-500.0,0.00025,2]
[406374925,1771831757785,-150.0,0.00025,2]
[406374926,1771831757804,-764.50538306,0.00025,2]
[406374927,1771831757825,-600.0,0.00025499,10]
[406374928,1771831757843,-1000.0,0.000255,2]
[406374929,1771831757863,-260.7578727,0.00025788,2]
[406374930,1771831757881,-532.90570729,0.00026,2]
[406374931,1771831757900,-1618.32893111,0.00026,30]
[406374932,1771831757920,-4369.78514088,0.00026,2]
[406374933,1771831759087,-9206.43062525,0.00026,2]
[406374934,1771831765104,644.4,0.00012,2]
[406374961,1771831832158,-500.0,0.00024999,2]
[406374964,1771831832168,-500.0,0.00024999,2]
[406374965,1771831832177,-500.0,0.00024999,2]
[406374967,1771831832188,-500.0,0.00024999,2]
[406374969,1771831832197,-500.0,0.00024999,2]
[406374971,1771831832207,-500.0,0.00024999,2]
[406374974,1771831832217,-18.45378598,0.00024999,2]
[406374977,1771831832331,-481.54621402,0.00024999,2]
[406374978,1771831832340,-500.0,0.00024999,2]
[406374979,1771831832350,-500.0,0.00024999,2]
[406374980,1771831832359,-500.0,0.00024999,2]
[406374981,1771831832369,-500.0,0.00024999,2]
[406374982,1771831832378,-164.05946228,0.00024999,2]
[406374983,1771831832387,-500.0,0.00024999,2]
[406374984,1771831832397,-500.0,0.00024999,2]
[406374985,1771831832406,-6323.78423387,0.00026,2]
[406374986,1771831832416,-2614.35879508,0.0002606,2]
[406374987,1771831832426,-195.76419351,0.0002616,2]
[406374988,1771831832435,-500.0,0.00027117,7]
[406374989,1771831832445,-150.0,0.0002739,2]
[406374990,1771831832454,-10002.61898658,0.000275,2]
[406374991,1771831832466,-380.57647408,0.000275,2]
[406374992,1771831832477,-693.06526405,0.000275,2]
[406374993,1771831832490,-1000.0,0.000275,2]
[406374994,1771831832502,-710.33255992,0.000275,2]
[406374999,1771831838385,-6820.13623295,0.000275,2]
[406375000,1771831838403,-13621.49673499,0.000275,2]
[406375001,1771831838421,-1827.41836238,0.000275,2]
[406375002,1771831838437,-1710.09868205,0.000275,2]
[406375003,1771831838448,-1629.04971599,0.000275,2]
[406375004,1771831838536,-3817.6757898,0.000275,2]
[406375072,1771831840850,-4016.26601849,0.000275,2]
[406375073,1771831840859,-499.99999901,0.00028,2]
[406375074,1771831840868,-600.0,0.00028049,30]
[406375076,1771831840877,-322.96815239,0.0002876,2]
[406375078,1771831840886,-306.728867,0.00029686,2]
[406375080,1771831840895,-1002.0,0.0003,6]
[406375081,1771831840903,-2556.47536599,0.0003,30]
[406375082,1771831840915,-1268.9249755,0.0003,30]
[406375165,1771831843818,-736.13569811,0.0003,30]
[406375172,1771831846270,-8370.29973363,0.0003,30]
[406375173,1771831846280,-307.04684693,0.0003,2]
[406375174,1771831846290,-1630.76556245,0.00030146,120]
[406375175,1771831846300,-720.0,0.00030854,30]
[406375176,1771831846310,-306.728867,0.00030935,2]
[406375177,1771831846319,-1064.40570289,0.00031,8]
[406375178,1771831846329,-500.0,0.00031063,7]
[406375179,1771831846338,-4305.76493495,0.00032,30]
[406375180,1771832328443,3073.34434021,0.000157,120]
[406375181,1771832826139,-183.73855383,0.00013699,2]
[406375182,1771832826161,-150.0,0.00016235,2]
[406375183,1771832826182,-177.0,0.00018235,2]
[406375184,1771832826203,-160.99319891,0.00020235,2]
[406375185,1771832841148,-43.00680109,0.00020235,2]
[406375186,1771832841177,-164.08293833,0.00022235,2]
[406375187,1771832952102,-66.91706167,0.00022235,2]
[406375188,1771832952122,-300.0,0.00023845,2]
[406375189,1771832952142,-242.780178,0.00023846,30]
[406375190,1771832956090,-427.9448152,0.00023846,30]
[406375191,1771832956111,-156.74197711,0.00023968,2]
[406375192,1771832973097,-34.32923279,0.00023968,2]
[406375193,1771832973119,-300.0,0.00024313,2]
[406375194,1771832973139,-12568.94225101,0.00024314,2]
[406375219,1771833032294,-300.0,0.00024312,2]
[406375221,1771833032304,-300.0,0.00024312,2]
[406375223,1771833032312,-616.0,0.00024312,2]
[406375225,1771833032321,-500.0,0.00024313,2]
[406375228,1771833032330,-500.0,0.00024313,2]
[406375231,1771833032339,-500.0,0.00024313,2]
[406375234,1771833032348,-500.0,0.00024313,2]
[406375237,1771833032357,-500.0,0.00024313,2]
[406375240,1771833032367,-500.0,0.00024313,2]
[406375244,1771833032376,-500.0,0.00024313,2]
[406375247,1771833032385,-500.0,0.00024313,2]
[406375250,1771833032394,-500.0,0.00024313,2]
[406375253,1771833032403,-500.0,0.00024313,2]
[406375256,1771833032412,-500.0,0.00024313,2]
[406375259,1771833032420,-500.0,0.00024313,2]
[406375261,1771833032429,-473.70187242,0.00024313,2]
[406375265,1771833032438,-500.0,0.00024313,2]
[406375266,1771833032448,-500.0,0.00024313,2]
[406375269,1771833032457,-500.0,0.00024313,2]
[406375271,1771833032467,-500.0,0.00024313,2]
[406375272,1771833032476,-500.0,0.00024313,2]
[406375274,1771833032485,-500.0,0.00024313,2]
[406375276,1771833032494,-287.60145289,0.00024313,2]
[406375278,1771833032504,-500.0,0.00024313,2]
[406375280,1771833032513,-500.0,0.00024313,2]
[406375282,1771833032523,-500.0,0.00024313,2]
[406375284,1771833032532,-500.0,0.00024313,2]
[406375286,1771833032540,-500.0,0.00024313,2]
[406375288,1771833032550,-500.0,0.00024313,2]
[406375290,1771833032560,-500.0,0.00024313,2]
[406375292,1771833032569,-500.0,0.00024313,2]
[406375294,1771833032579,-500.0,0.00024313,2]
[406375295,1771833032588,-500.0,0.00024313,2]
[406375297,1771833032598,-500.0,0.00024313,2]
[406375299,1771833032611,-317.59252503,0.00024313,2]
[406375300,1771833032621,-287.0705886,0.00024313,2]
[406375301,1771833032631,-500.0,0.00024313,2]
[406375302,1771833032641,-500.0,0.00024313,2]
[406375303,1771833032650,-500.0,0.00024313,2]
[406375304,1771833032660,-500.0,0.00024313,2]
[406375305,1771833032670,-500.0,0.00024313,2]
[406375306,1771833032680,-388.6548892,0.00024313,2]
[406375314,1771833038931,-111.3451108,0.00024313,2]
[406375315,1771833038941,-500.0,0.00024313,2]
[406375316,1771833038951,-500.0,0.00024313,2]
[406375317,1771833038960,-500.0,0.00024313,2]
[406375318,1771833038970,-500.0,0.00024313,2]
[406375319,1771833038980,-500.0,0.00024313,2]
[406375320,1771833038990,-500.0,0.00024313,2]
[406375321,1771833038999,-500.0,0.00024313,2]
[406375322,1771833039010,-500.0,0.00024313,2]
[406375323,1771833039020,-500.0,0.00024313,2]
[406375324,1771833039030,-500.0,0.00024313,2]
[406375325,1771833039039,-500.0,0.00024313,2]
[406375326,1771833039049,-500.0,0.00024313,2]
[406375327,1771833039058,-500.0,0.00024313,2]
[406375328,1771833039067,-500.0,0.00024313,2]
[406375329,1771833039077,-500.0,0.00024313,2]
[406375330,1771833039087,-500.0,0.00024313,2]
[406375331,1771833039096,-500.0,0.00024313,2]
[406375332,1771833039105,-500.0,0.00024313,2]
[406375333,1771833039114,-500.0,0.00024313,2]
[406375334,1771833039123,-500.0,0.00024313,2]
[406375335,1771833039133,-500.0,0.00024313,2]
[406375336,1771833039142,-500.0,0.00024313,2]
[406375337,1771833039151,-500.0,0.00024313,2]
[406375338,1771833039161,-383.018687,0.00024313,2]
[406375339,1771833039170,-500.0,0.00024313,2]
[406375340,1771833039180,-500.0,0.00024313,2]
[406375341,1771833039189,-500.0,0.00024313,2]
[406375342,1771833039198,-500.0,0.00024313,2]
[406375343,1771833039207,-500.0,0.00024313,2]
[406375344,1771833039216,-500.0,0.00024313,2]
[406375345,1771833039225,-500.0,0.00024313,2]
[406375346,1771833039236,-500.0,0.00024313,2]
[406375347,1771833039245,-500.0,0.00024313,2]
[406375348,1771833039254,-500.0,0.00024313,2]
[406375349,1771833039263,-500.0,0.00024313,2]
[406375350,1771833039272,-500.0,0.00024313,2]
[406375351,1771833039282,-499.99999999,0.00024313,2]
[406375352,1771833039291,-31921.05113109,0.00024314,2]
[406375353,1771833039300,-180.26624668,0.000246,2]
[406375354,1771833039309,-272.61855916,0.00024647,2]
[406375355,1771833039319,-47454.89280603,0.00024799,2]
[406375356,1771833039328,-300.0,0.00024799,10]
[406375357,1771833039339,-300.0,0.00024799,10]
[406375358,1771833039348,-300.0,0.00024799,10]
[406375359,1771833039358,-300.0,0.00024799,10]
[406375360,1771833039369,-300.0,0.00024799,10]
[406375361,1771833039378,-300.0,0.00024799,10]
[406375362,1771833039387,-261.03027511,0.00024993,2]
[406375363,1771833039395,-151.0,0.00024994,2]
[406375364,1771833039404,-151.0,0.00024994,2]
[406375365,1771833039413,-523.97868628,0.00024996,16]
[406375366,1771833039421,-558.42,0.00024996,16]
[406375367,1771833039430,-500.0,0.00024999,2]
[406375368,1771833039438,-287.0,0.00025037,2]
[406375369,1771833039448,-600.0,0.00025498,10]
[406375370,1771833039457,-1135.30582246,0.00025927,2]
[406375371,1771833039465,-184.594399,0.00026016,2]
[406375372,1771833039474,-7558.00381126,0.00026017,2]
[406375373,1771833039483,-155.767967,0.00026027,2]
[406375374,1771833039492,-161.919586,0.00026027,2]
[406375375,1771833039500,-5000.0,0.00026027,4]
[406375376,1771833039510,-5000.0,0.00026027,6]
[406375377,1771833039519,-740.38308371,0.00026027,7]
[406375378,1771833039531,-866.94833323,0.00026027,7]
[406375379,1771833039874,-74.63686142,0.00026027,7]
[406375566,1771833046821,-7853.702015,0.0002381,2]
[406375567,1771833046831,-2234.52189055,0.000245,2]
[406375568,1771833046841,-3318.03172164,0.00026027,7]
[406375569,1771833046851,-7558.00381126,0.00027387,2]
[406375570,1771833046862,-151.0,0.00027397,2]
[406375571,1771833046872,-151.0,0.00027397,2]
[406375572,1771833046882,-500.0,0.00027397,2]
[406375573,1771833046892,-500.0,0.00027397,2]
[406375574,1771833046903,-500.0,0.00027397,2]
[406375575,1771833046912,-500.0,0.00027397,2]
[406375576,1771833046921,-500.0,0.00027397,2]
[406375577,1771833046930,-500.0,0.00027397,2]
[406375578,1771833046941,-500.0,0.00027397,2]
[406375579,1771833046950,-500.0,0.00027397,2]
[406375580,1771833046959,-500.0,0.00027397,2]
[406375581,1771833046968,-500.0,0.00027397,2]
[406375582,1771833046977,-500.0,0.00027397,2]
[406375583,1771833046986,-500.0,0.00027397,2]
[406375584,1771833046996,-500.0,0.00027397,2]
[406375585,1771833047005,-500.0,0.00027397,2]
[406375586,1771833047015,-500.0,0.00027397,2]
[406375587,1771833047024,-500.0,0.00027397,2]
[406375588,1771833047035,-500.0,0.00027397,2]
[406375589,1771833047045,-500.0,0.00027397,2]
[406375590,1771833047055,-500.0,0.00027397,2]
[406375591,1771833047065,-500.0,0.00027397,2]
[406375592,1771833047075,-500.0,0.00027397,2]
[406375593,1771833047085,-449.5625097,0.00027397,2]
[406375594,1771833047095,-500.0,0.00027397,2]
[406375595,1771833047104,-500.0,0.00027397,2]
[406375596,1771833047115,-500.0,0.00027397,2]
[406375597,1771833047124,-500.0,0.00027397,2]
[406375598,1771833047134,-500.0,0.00027397,2]
[406375600,1771833047146,-500.0,0.00027397,2]
[406375601,1771833047156,-500.0,0.00027397,2]
[406375602,1771833047166,-500.0,0.00027397,2]
[406375603,1771833047176,-500.0,0.00027397,2]
[406375604,1771833047185,-500.0,0.00027397,2]
[406375605,1771833047196,-500.0,0.00027397,2]
[406375606,1771833047207,-500.0,0.00027397,2]
[406375607,1771833047217,-500.0,0.00027397,2]
[406375608,1771833047229,-500.0,0.00027397,2]
[406375609,1771833047239,-500.0,0.00027397,2]
[406375610,1771833047248,-500.0,0.00027397,2]
[406375611,1771833047257,-500.0,0.00027397,2]
[406375612,1771833047266,-500.0,0.00027397,2]
[406375613,1771833047275,-500.0,0.00027397,2]
[406375614,1771833047284,-500.0,0.00027397,2]
[406375615,1771833047294,-500.0,0.00027397,2]
[406375616,1771833047304,-500.0,0.00027397,2]
[406375617,1771833047314,-500.0,0.00027397,2]
[406375618,1771833047325,-500.0,0.00027397,2]
[406375619,1771833047335,-500.0,0.00027397,2]
[406375620,1771833047346,-500.0,0.00027397,2]
[406375621,1771833047355,-500.0,0.00027397,2]
[406375622,1771833047365,-500.0,0.00027397,2]
[406375623,1771833047374,-500.0,0.00027397,2]
[406375624,1771833047463,-500.0,0.00027397,2]
[406375625,1771833047473,-500.0,0.00027397,2]
[406375626,1771833047483,-500.0,0.00027397,2]
[406375627,1771833047492,-500.0,0.00027397,2]
[406375628,1771833047502,-500.0,0.00027397,2]
[406375629,1771833047512,-500.0,0.00027397,2]
[406375630,1771833047521,-500.0,0.00027397,2]
[406375631,1771833047531,-500.0,0.00027397,2]
[406375632,1771833047540,-500.0,0.00027397,2]
[406375633,1771833047549,-500.0,0.00027397,2]
[406375634,1771833047559,-500.0,0.00027397,2]
[406375635,1771833047567,-500.0,0.00027397,2]
[406375636,1771833047577,-500.0,0.00027397,2]
[406375637,1771833047588,-500.0,0.00027397,2]
[406375638,1771833047597,-500.0,0.00027397,2]
[406375639,1771833047607,-500.0,0.00027397,2]
[406375640,1771833047616,-500.0,0.00027397,2]
[406375641,1771833047626,-500.0,0.00027397,2]
[406375642,1771833047636,-500.0,0.00027397,2]
[406375643,1771833047645,-500.0,0.00027397,2]
[406375644,1771833047655,-500.0,0.00027397,2]
[406375645,1771833047665,-500.0,0.00027397,2]
[406375646,1771833047675,-500.0,0.00027397,2]
[406375647,1771833047684,-500.0,0.00027397,2]
[406375648,1771833047694,-500.0,0.00027397,2]
[406375649,1771833047703,-500.0,0.00027397,2]
[406375650,1771833047714,-500.0,0.00027397,2]
[406375651,1771833047724,-500.0,0.00027397,2]
[406375652,1771833047733,-500.0,0.00027397,2]
[406375653,1771833047743,-500.0,0.00027397,2]
[406375654,1771833047752,-273.40892197,0.00027397,2]
[406375655,1771833047762,-252.555723,0.00027397,2]
[406375656,1771833047771,-252.555723,0.00027397,2]
[406375657,1771833047780,-252.555723,0.00027397,2]
[406375658,1771833047790,-252.555723,0.00027397,2]
[406375659,1771833047799,-252.555723,0.00027397,2]
[406375660,1771833047808,-252.555723,0.00027397,2]
[406375661,1771833047818,-252.555723,0.00027397,2]
[406375662,1771833047828,-252.555723,0.00027397,2]
[406375663,1771833047837,-252.555723,0.00027397,2]
[406375664,1771833047846,-252.555723,0.00027397,2]
[406375665,1771833047857,-252.555723,0.00027397,2]
[406375666,1771833047872,-252.555723,0.00027397,2]
[406375667,1771833047882,-181.44,0.000274,14]
[406375668,1771833047892,-8149.38,0.000274,2]
[406375669,1771833047903,-333.51617087,0.00027499,2]
[406375670,1771833047916,-166.48382913,0.00027499,2]
[406375671,1771833047926,-500.0,0.00027499,2]
[406375672,1771833047935,-2014.39507082,0.0002768,10]
[406375673,1771833047947,-1092.82492918,0.0002768,10]
[406375674,1771833047957,-1341.4590057,0.0002769,2]
[406375675,1771833047968,-568.1232093,0.0002769,2]
[406375676,1771833047978,-1080.1267907,0.0002769,2]
[406375677,1771833047989,-929.55557145,0.0002769,2]
[406375680,1771833662163,-300.0,0.00013698,2]
[406375681,1771833662190,-297.1965441,0.00013698,2]
[406375682,1771833662215,-578.38960925,0.00013699,2]
[406375683,1771833691581,-300.0,0.00013698,2]
[406375732,1771834050168,-150.0,0.00013562,2]
[406375733,1771834050193,-177.31632909,0.00013699,2]
[406375775,1771834145083,-503.35731386,0.00013699,2]
[406375776,1771834145103,-328.1416742,0.00013699,2]
[406375777,1771834145121,-502.10267406,0.00013699,2]
[406375778,1771834145140,-303.20330838,0.00013699,2]
[406375779,1771834145161,-502.69412043,0.00013699,2]
[406375780,1771834145179,-234.81283129,0.00013699,2]
[406375781,1771834145200,-506.48326983,0.00013699,2]
[406375782,1771834145219,-506.88562164,0.00013699,2]
[406375783,1771834145239,-519.48799971,0.00013699,2]
[406375784,1771834145258,-501.09670929,0.00013699,2]
[406375785,1771834145276,-500.0,0.00013699,2]
[406375786,1771834145295,-165.1994756,0.000137,2]
[406375787,1771834167127,-46.6005244,0.000137,2]
[406375788,1771834167147,-132.54629964,0.00022,2]
[406375789,1771834169127,-26.45370036,0.00022,2]
[406375790,1771834169146,-282.9955382,0.00023655,2]
[406375888,1771834238883,-63.0733568,0.00023655,2]
[406375889,1771834238893,-300.0,0.00025326,2]
[406375890,1771834238903,-14040.0,0.000255,2]
[406375891,1771834238912,-233.683939,0.00025589,2]
[406375892,1771834238922,-4031.4372379,0.00025644,2]
[406375893,1771834238932,-313.06583611,0.00026834,2]
[406375894,1771834238943,-500.0,0.00026834,2]
[406375895,1771834238952,-309.67450984,0.00026834,2]
[406375896,1771834238962,-500.0,0.00026834,2]
[406375897,1771834238971,-500.0,0.00026834,2]
[406375898,1771834238980,-478.76014529,0.00026834,2]
[406375899,1771834238990,-500.0,0.00026834,2]
[406375900,1771834239000,-538.3018687,0.00026834,2]
[406375901,1771834239010,-4662.61929579,0.00026835,2]
[406375902,1771834239022,-907.78667318,0.00026835,2]
[406375903,1771834239034,-1906.436815,0.00026835,2]
[406375904,1771834239045,-3455.27223418,0.00026835,2]
[406375905,1771834239056,-3158.34040225,0.00026835,2]
[406375971,1771834241261,-3190.7057794,0.00026835,2]
[406376082,1771834243853,-812.74077226,0.00026835,2]
[406376083,1771834243874,-1400.20670523,0.00026835,2]
[406376084,1771834243886,-4926.83301191,0.00026835,2]
[406376085,1771834243895,-1955.20665424,0.00026889,2]
[406376086,1771834243905,-368.2620604,0.00027397,2]
[406376205,1771835151126,-207.7968933,0.00012386,2]
[406376237,1771835313972,2457.68418455,0.00012,2]
[406376240,1771835351085,-1937.73789419,0.00012138,2]
[406376241,1771835351106,-5000.0,0.00012261,2]
[406376242,1771835351126,-300.0,0.00012385,2]
[406376243,1771835351146,-150.0,0.00012449,2]
[406376244,1771835351166,-430.0,0.00012765,2]
[406376245,1771835351278,-199.0,0.00013004,2]
[406376246,1771835351299,-755.83038548,0.00013346,2]
[406376247,1771835351319,-300.0,0.00013698,2]
[406376248,1771835351337,-500.0,0.00013699,2]
[406376249,1771835351357,-334.09059505,0.00013699,2]
[406376250,1771835351385,-150.10799448,0.00014247,2]
[406376251,1771835351409,-177.0,0.00014449,2]
[406376252,1771835351430,-868.49988555,0.00015,2]
[406376253,1771835351451,-145.72621454,0.00015011,2]
[406376254,1771835352249,-184.27378546,0.00015011,2]
[406376255,1771835352270,-204.0,0.00016449,2]
[406376256,1771835352290,-5430.79005211,0.00017,2]
[406376257,1771835352310,-357.72053916,0.00018,2]
[406376258,1771835352330,-2359.31414148,0.00018285,2]
[406376259,1771835352351,-231.0,0.00018449,2]
[406376260,1771835352371,-2292.99178306,0.0002,2]
[406376261,1771835352393,-258.0,0.00020449,2]
[406376262,1771835352413,-203.2,0.000219,2]
[406376263,1771835352433,-150.0,0.00021918,2]
[406376264,1771835352453,-150.0,0.00021918,2]
[406376265,1771835352475,-285.0,0.00022449,2]
[406376266,1771835352499,-300.0,0.00022466,2]
[406376267,1771835352519,-200.0,0.00022466,2]
[406376268,1771835352542,-453.39097637,0.00023014,2]
[406376269,1771835352563,-250.61629608,0.00023014,2]
[406376270,1771835352585,-245.92664165,0.0002396,2]
[406376271,1771835352607,-170.90919308,0.00024325,2]
[406376272,1771835352629,-446.35372722,0.00024325,2]
[406376273,1771835365113,-1010.74611232,0.00024082,2]
[406376274,1771835365136,-0.80362196,0.00024325,2]
[406376275,1771835365158,-17.45026572,0.00024449,2]
[406376432,1771835438139,-294.54973428,0.00024449,2]
[406376433,1771835438148,-807.0,0.00024449,2]
[406376434,1771835438158,-188.0251344,0.0002488,2]
[406376435,1771835438167,-500.0,0.00024954,2]
[406376436,1771835438176,-112.17006992,0.00024954,2]
[406376438,1771835438187,-287.46827435,0.00024954,2]
[406376439,1771835438196,-208.42024171,0.00024954,2]
[406376441,1771835438206,-218.47812378,0.00024954,2]
[406376443,1771835438215,-500.0,0.00024954,2]
[406376445,1771835438224,-398.25773888,0.00024954,2]
[406376448,1771835438235,-101.74226112,0.00024954,2]
[406376450,1771835438244,-500.0,0.00024954,2]
[406376452,1771835438253,-500.0,0.00024954,2]